fUSD/lending_fUSD_20260626
["ID","MTS","AMOUNT","RATE_DAILY","PERIOD"]
[426468222,1782424247000,-500.0,0.00029,2]
[426468224,1782424247000,-500.0,0.00029,2]
[426468267,1782424248000,-370.51181976,0.00028493,2]
[426468261,1782424248000,-200.0,0.00029,2]
[426468260,1782424248000,-200.0,0.00029,2]
[426468262,1782424248000,-13.31540159,0.00029,2]
[426468263,1782424248000,-186.68459841,0.00029,2]
[426468264,1782424248000,-115.31540159,0.00029,2]
[426468272,1782424248000,-875.0,0.0002,2]
[426468270,1782424248000,-200.0,0.00028493,2]
[426468265,1782424248000,-150.0,0.00028493,2]
[426468269,1782424248000,-703.79600676,0.00028493,2]
[426468268,1782424248000,-168.20399324,0.00028493,2]
[426468271,1782424248000,-200.73228355,0.00028493,2]
[426468273,1782424248000,-323.81977999,0.00021,2]
[426468266,1782424248000,-129.48818024,0.00028493,2]
[426468292,1782424249000,-500.0,0.00028493,2]
[426468284,1782424249000,-875.0,0.00024,2]
[426468280,1782424249000,-1064.98919944,0.00022,2]
[426468283,1782424249000,-875.0,0.00023,2]
[426468282,1782424249000,-150.0,0.0002261,2]
[426468281,1782424249000,-216.0,0.0002261,2]
[426468275,1782424249000,-0.00176201,0.00021,2]
[426468277,1782424249000,-875.0,0.00021,2]
[426468279,1782424249000,-980.8117184,0.00027397,10]
[426468276,1782424249000,-9.52944544,0.00021,2]
[426468274,1782424249000,-450.93119919,0.00021,2]
[426468286,1782424249000,-5402.69597334,0.00027397,10]
[426468278,1782424249000,-875.0,0.00022,2]
[426468289,1782424249000,-500.0,0.00028493,2]
[426468288,1782424249000,-500.0,0.00028493,2]
[426468293,1782424249000,-500.0,0.00028493,2]
[426468291,1782424249000,-872.0,0.00028493,2]
[426468303,1782424249000,-872.0,0.00028493,2]
[426468300,1782424249000,-308.953089,0.00028493,2]
[426468301,1782424249000,-872.0,0.00028493,2]
[426468298,1782424249000,-500.0,0.00028493,2]
[426468296,1782424249000,-500.0,0.00028493,2]
[426468299,1782424249000,-872.0,0.00028493,2]
[426468295,1782424249000,-500.0,0.00028493,2]
[426468294,1782424249000,-500.0,0.00028493,2]
[426468290,1782424249000,-500.0,0.00028493,2]
[426468287,1782424249000,-299.26771645,0.00028493,2]
[426468285,1782424249000,-1548.21230826,0.00027397,10]
[426468302,1782424249000,-872.0,0.00028493,2]
[426468297,1782424249000,-500.0,0.00028493,2]
[426468312,1782424250000,-200.0,0.00029,2]
[426468309,1782424250000,-1394.737294,0.00028702,7]
[426468307,1782424250000,-1394.737294,0.00028702,7]
[426468304,1782424250000,-1394.737294,0.00028702,7]
[426468311,1782424250000,-200.0,0.00029,2]
[426468306,1782424250000,-1394.737294,0.00028702,7]
[426468305,1782424250000,-1394.737294,0.00028702,7]
[426468310,1782424250000,-84.68459841,0.00029,2]
[426468308,1782424250000,-1394.737294,0.00028702,7]
[426468314,1782424250000,-238.63973815,0.00029,2]
[426468315,1782424250000,-10377.2619394,0.00029,2]
[426468318,1782424250000,-10732.46453512,0.00029,2]
[426468313,1782424250000,-331.34,0.00029,2]
[426468322,1782424250000,-10000.0,0.00029,2]
[426468317,1782424250000,-220.37104519,0.00029,2]
[426468323,1782424250000,-5017.17,0.00029,2]
[426468324,1782424250000,-4423.4541428,0.00029,2]
[426468320,1782424250000,-5000.0,0.00029,3]
[426468321,1782424250000,-444.87723902,0.00029,2]
[426468316,1782424250000,-1003.91954695,0.00029,2]
[426468319,1782424250000,-1598.90004572,0.00029,2]
[426468343,1782424878000,151.83,0.00037262,120]
[426468367,1782425305000,-200.0,0.00012181,2]
[426468370,1782425306000,-89.16488951,0.00012311,2]
[426468369,1782425306000,-863.56478128,0.0001228,2]
[426468368,1782425306000,-1444.06636459,0.0001228,2]
[426468373,1782425349000,-124.55868843,0.00012311,2]
[426468371,1782425349000,-163.87,0.00011487,2]
[426468374,1782425349000,-150.0,0.00012402,2]
[426468375,1782425349000,-46.28723128,0.00012508,2]
[426468372,1782425349000,-608.08,0.00012135,2]
[426468389,1782425432000,-150.0,0.00012861,2]
[426468387,1782425432000,-8555.43119273,0.00012793,2]
[426468390,1782425432000,-4603.08639051,0.00012875,2]
[426468388,1782425432000,-800.0,0.000128,4]
[426468386,1782425432000,-158.01,0.0001274,2]
[426468385,1782425432000,-400.0,0.000127,4]
[426468384,1782425432000,-237.47,0.00012597,2]
[426468382,1782425432000,-151.01276872,0.00012508,2]
[426468383,1782425432000,-223.17450606,0.00012526,7]
[426468391,1782425433000,-56012.90597787,0.00012875,2]
[426468393,1782425433000,-3838.25107287,0.00012875,2]
[426468392,1782425433000,-3550.09317915,0.00012875,2]
[426468406,1782425438000,-271.38260267,0.00012978,2]
[426468424,1782425438000,-500.0,0.00012978,2]
[426468423,1782425438000,-500.0,0.00012978,2]
[426468422,1782425438000,-500.0,0.00012978,2]
[426468425,1782425438000,-500.0,0.00012978,2]
[426468421,1782425438000,-206.81044189,0.00012978,2]
[426468420,1782425438000,-500.0,0.00012978,2]
[426468419,1782425438000,-500.0,0.00012978,2]
[426468417,1782425438000,-500.0,0.00012978,2]
[426468409,1782425438000,-173.93554341,0.00012978,2]
[426468411,1782425438000,-257.60409866,0.00012978,2]
[426468412,1782425438000,-174.4645944,0.00012978,2]
[426468415,1782425438000,-500.0,0.00012978,2]
[426468407,1782425438000,-500.0,0.00012978,2]
[426468418,1782425438000,-500.0,0.00012978,2]
[426468408,1782425438000,-500.0,0.00012978,2]
[426468414,1782425438000,-500.0,0.00012978,2]
[426468416,1782425438000,-287.26246941,0.00012978,2]
[426468413,1782425438000,-500.0,0.00012978,2]
[426468400,1782425438000,-85215.43257858,0.00012875,2]
[426468403,1782425438000,-151.0,0.00012901,2]
[426468404,1782425438000,-151.0,0.00012905,2]
[426468402,1782425438000,-1300.0,0.000129,4]
[426468401,1782425438000,-1000.0,0.00012893,2]
[426468405,1782425438000,-151.0,0.00012924,2]
[426468428,1782425438000,-500.0,0.00012978,2]
[426468410,1782425438000,-195.4146397,0.00012978,2]
[426468427,1782425438000,-500.0,0.00012978,2]
[426468454,1782425438000,-500.0,0.00012978,2]
[426468450,1782425438000,-500.0,0.00012978,2]
[426468444,1782425438000,-500.0,0.00012978,2]
[426468449,1782425438000,-500.0,0.00012978,2]
[426468451,1782425438000,-500.0,0.00012978,2]
[426468448,1782425438000,-500.0,0.00012978,2]
[426468446,1782425438000,-500.0,0.00012978,2]
[426468453,1782425438000,-500.0,0.00012978,2]
[426468442,1782425438000,-251.56656748,0.00012978,2]
[426468445,1782425438000,-500.0,0.00012978,2]
[426468452,1782425438000,-500.0,0.00012978,2]
[426468443,1782425438000,-500.0,0.00012978,2]
[426468447,1782425438000,-500.0,0.00012978,2]
[426468438,1782425438000,-500.0,0.00012978,2]
[426468441,1782425438000,-500.0,0.00012978,2]
[426468440,1782425438000,-500.0,0.00012978,2]
[426468430,1782425438000,-500.0,0.00012978,2]
[426468431,1782425438000,-500.0,0.00012978,2]
[426468434,1782425438000,-500.0,0.00012978,2]
[426468433,1782425438000,-500.0,0.00012978,2]
[426468429,1782425438000,-500.0,0.00012978,2]
[426468426,1782425438000,-500.0,0.00012978,2]
[426468432,1782425438000,-500.0,0.00012978,2]
[426468439,1782425438000,-500.0,0.00012978,2]
[426468437,1782425438000,-500.0,0.00012978,2]
[426468435,1782425438000,-500.0,0.00012978,2]
[426468436,1782425438000,-500.0,0.00012978,2]
[426468501,1782425439000,-233.0,0.0002,2]
[426468494,1782425439000,-197.3,0.00018761,2]
[426468493,1782425439000,-350.0,0.00018,2]
[426468491,1782425439000,-1906.98967046,0.00017909,2]
[426468492,1782425439000,-8555.43119268,0.0001793,2]
[426468496,1782425439000,-237.47,0.00018896,2]
[426468490,1782425439000,-237.47,0.00017321,2]
[426468487,1782425439000,-350.83,0.00016,14]
[426468488,1782425439000,-8555.43119268,0.00016218,2]
[426468485,1782425439000,-237.47,0.00015747,2]
[426468495,1782425439000,-500.0,0.00018849,2]
[426468486,1782425439000,-300.0,0.00016,2]
[426468509,1782425439000,-584.0,0.0002,2]
[426468499,1782425439000,-213.0,0.0002,2]
[426468498,1782425439000,-325.0,0.0002,2]
[426468497,1782425439000,-8555.43119268,0.00019643,2]
[426468504,1782425439000,-353.0,0.0002,2]
[426468503,1782425439000,-1171.0,0.0002,2]
[426468506,1782425439000,-278.55092,0.0002,2]
[426468507,1782425439000,-400.0,0.0002,2]
[426468505,1782425439000,-154.0,0.0002,2]
[426468512,1782425439000,-1906.98967046,0.00020367,2]
[426468508,1782425439000,-525.0,0.0002,2]
[426468511,1782425439000,-724.0,0.0002,2]
[426468483,1782425439000,-754.85,0.00015306,2]
[426468500,1782425439000,-558.0,0.0002,2]
[426468479,1782425439000,-216.45114417,0.00014587,2]
[426468469,1782425439000,-579.85520138,0.00013698,2]
[426468480,1782425439000,-250.0,0.00014831,2]
[426468455,1782425439000,-879424.6776,0.00012979,2]
[426468457,1782425439000,-150.0,0.00013014,2]
[426468458,1782425439000,-1865.358,0.00013027,2]
[426468456,1782425439000,-1906.98967046,0.00012993,2]
[426468460,1782425439000,-213.62907301,0.00013027,2]
[426468459,1782425439000,-166.42,0.00013027,2]
[426468464,1782425439000,-3109.28155768,0.000133,2]
[426468463,1782425439000,-160.0,0.00013143,2]
[426468461,1782425439000,-160.0,0.00013096,2]
[426468462,1782425439000,-151.0,0.00013127,2]
[426468465,1782425439000,-223.18827395,0.00013592,2]
[426468468,1782425439000,-500.0,0.00013698,2]
[426468471,1782425439000,-8567.58,0.00013699,2]
[426468473,1782425439000,-250.0,0.00014,2]
[426468466,1782425439000,-500.0,0.00013698,2]
[426468510,1782425439000,-248.0,0.0002,2]
[426468467,1782425439000,-500.0,0.00013698,2]
[426468474,1782425439000,-447.87,0.00014074,2]
[426468472,1782425439000,-161.63666469,0.00013758,2]
[426468475,1782425439000,-237.47,0.00014172,2]
[426468470,1782425439000,-500.0,0.00013698,2]
[426468476,1782425439000,-1125.65,0.000145,2]
[426468477,1782425439000,-8555.43119268,0.00014505,2]
[426468478,1782425439000,-151.0,0.00014572,2]
[426468482,1782425439000,-151.13177012,0.00015068,2]
[426468481,1782425439000,-167.01,0.00014988,2]
[426468489,1782425439000,-608.08,0.00016989,2]
[426468484,1782425439000,-1906.98967046,0.00015451,2]
[426468513,1782425439000,-213.629073,0.00020616,2]
[426468502,1782425439000,-284.0,0.0002,2]
[426468525,1782425439000,-151.0,0.0002064,2]
[426468545,1782425439000,-724.0,0.00021,2]
[426468549,1782425439000,-3381.07,0.00021332,2]
[426468547,1782425439000,-23666.32,0.00021273,2]
[426468551,1782425439000,-313.03777529,0.00021908,2]
[426468561,1782425439000,-353.0,0.00022,2]
[426468560,1782425439000,-1171.0,0.00022,2]
[426468554,1782425439000,-799.0,0.00022,2]
[426468556,1782425439000,-213.0,0.00022,2]
[426468557,1782425439000,-558.0,0.00022,2]
[426468552,1782425439000,-664.42,0.00021917,2]
[426468559,1782425439000,-284.0,0.00022,2]
[426468555,1782425439000,-325.0,0.00022,2]
[426468558,1782425439000,-233.0,0.00022,2]
[426468553,1782425439000,-5000.0,0.00021918,2]
[426468564,1782425439000,-525.0,0.00022,2]
[426468573,1782425439000,-1000.0,0.0002245,2]
[426468563,1782425439000,-154.0,0.00022,2]
[426468562,1782425439000,-30370.79844328,0.00022,4]
[426468565,1782425439000,-584.0,0.00022,2]
[426468566,1782425439000,-1894.54,0.00022,2]
[426468569,1782425439000,-2979.43660662,0.0002226,2]
[426468571,1782425439000,-6084.0,0.00022421,2]
[426468567,1782425439000,-248.0,0.00022,2]
[426468572,1782425439000,-3649.0,0.00022421,2]
[426468568,1782425439000,-724.0,0.00022,2]
[426468570,1782425439000,-500.0,0.00022329,2]
[426468515,1782425439000,-151.0,0.0002064,2]
[426468546,1782425439000,-1022.03,0.00021165,2]
[426468548,1782425439000,-346.87,0.00021273,2]
[426468550,1782425439000,-8555.43119268,0.00021355,2]
[426468544,1782425439000,-248.0,0.00021,2]
[426468538,1782425439000,-284.0,0.00021,2]
[426468517,1782425439000,-151.0,0.0002064,2]
[426468516,1782425439000,-151.0,0.0002064,2]
[426468514,1782425439000,-151.0,0.0002064,2]
[426468521,1782425439000,-151.0,0.0002064,2]
[426468522,1782425439000,-151.0,0.0002064,2]
[426468523,1782425439000,-151.0,0.0002064,2]
[426468518,1782425439000,-151.0,0.0002064,2]
[426468519,1782425439000,-151.0,0.0002064,2]
[426468524,1782425439000,-151.0,0.0002064,2]
[426468526,1782425439000,-151.0,0.0002064,2]
[426468534,1782425439000,-325.0,0.00021,2]
[426468535,1782425439000,-213.0,0.00021,2]
[426468529,1782425439000,-151.0,0.0002064,2]
[426468520,1782425439000,-151.0,0.0002064,2]
[426468533,1782425439000,-151.0,0.0002064,2]
[426468531,1782425439000,-151.0,0.0002064,2]
[426468543,1782425439000,-584.0,0.00021,2]
[426468541,1782425439000,-154.0,0.00021,2]
[426468540,1782425439000,-353.0,0.00021,2]
[426468539,1782425439000,-1171.0,0.00021,2]
[426468537,1782425439000,-233.0,0.00021,2]
[426468542,1782425439000,-525.0,0.00021,2]
[426468532,1782425439000,-151.0,0.0002064,2]
[426468528,1782425439000,-151.0,0.0002064,2]
[426468536,1782425439000,-558.0,0.00021,2]
[426468527,1782425439000,-151.0,0.0002064,2]
[426468530,1782425439000,-151.0,0.0002064,2]
[426468621,1782425440000,-280.13355962,0.00023644,2]
[426468627,1782425440000,-152.67585699,0.00023644,2]
[426468626,1782425440000,-165.03905656,0.00023644,2]
[426468609,1782425440000,-8555.43119268,0.00023068,2]
[426468617,1782425440000,-182.27467723,0.00023644,2]
[426468613,1782425440000,-1133.86352755,0.000235,2]
[426468614,1782425440000,-189.86987819,0.000235,2]
[426468610,1782425440000,-3399.47869135,0.000235,2]
[426468611,1782425440000,-203.86838014,0.000235,2]
[426468612,1782425440000,-1325.52985229,0.000235,2]
[426468622,1782425440000,-225.55107829,0.00023644,2]
[426468619,1782425440000,-157.85801191,0.00023644,2]
[426468623,1782425440000,-314.02502115,0.00023644,2]
[426468640,1782425440000,-173.93854472,0.00023644,2]
[426468618,1782425440000,-256.13820767,0.00023644,2]
[426468628,1782425440000,-150.00345718,0.00023644,2]
[426468625,1782425440000,-152.97299263,0.00023644,2]
[426468620,1782425440000,-155.89447369,0.00023644,2]
[426468630,1782425440000,-157.01345415,0.00023644,2]
[426468629,1782425440000,-190.71840287,0.00023644,2]
[426468633,1782425440000,-162.04607962,0.00023644,2]
[426468631,1782425440000,-151.91817937,0.00023644,2]
[426468632,1782425440000,-168.85718495,0.00023644,2]
[426468635,1782425440000,-158.93719383,0.00023644,2]
[426468634,1782425440000,-153.26934179,0.00023644,2]
[426468608,1782425440000,-5000.0,0.00023003,2]
[426468624,1782425440000,-191.88081199,0.00023644,2]
[426468604,1782425440000,-724.0,0.00023,2]
[426468639,1782425440000,-201.51981331,0.00023644,2]
[426468607,1782425440000,-5000.0,0.00023003,2]
[426468575,1782425440000,-561.15,0.00022466,2]
[426468586,1782425440000,-1906.98967046,0.00022826,2]
[426468576,1782425440000,-1195.05,0.00022466,2]
[426468577,1782425440000,-2010.64,0.00022562,2]
[426468578,1782425440000,-150.0,0.0002261,2]
[426468574,1782425440000,-1346.58,0.00022466,2]
[426468581,1782425440000,-1361.0,0.0002261,2]
[426468579,1782425440000,-150.0,0.0002261,2]
[426468584,1782425440000,-2006.33,0.0002278,7]
[426468582,1782425440000,-491.0,0.0002261,2]
[426468580,1782425440000,-1277.0,0.0002261,2]
[426468583,1782425440000,-1234.844,0.0002261,2]
[426468590,1782425440000,-325.0,0.00023,2]
[426468588,1782425440000,-799.0,0.00023,2]
[426468596,1782425440000,-1171.0,0.00023,2]
[426468595,1782425440000,-284.0,0.00023,2]
[426468602,1782425440000,-248.0,0.00023,2]
[426468594,1782425440000,-233.0,0.00023,2]
[426468593,1782425440000,-558.0,0.00023,2]
[426468601,1782425440000,-584.0,0.00023,2]
[426468592,1782425440000,-213.0,0.00023,2]
[426468598,1782425440000,-154.0,0.00023,2]
[426468600,1782425440000,-525.0,0.00023,2]
[426468599,1782425440000,-1020.05591195,0.00023,2]
[426468597,1782425440000,-353.0,0.00023,2]
[426468605,1782425440000,-9843.67483982,0.00023003,2]
[426468606,1782425440000,-5000.0,0.00023003,2]
[426468616,1782425440000,-182.9621492,0.00023644,2]
[426468636,1782425440000,-157.46039437,0.00023644,2]
[426468685,1782425440000,-1000.0,0.00024658,2]
[426468637,1782425440000,-150.46078464,0.00023644,2]
[426468669,1782425440000,-525.0,0.00024,2]
[426468672,1782425440000,-724.0,0.00024,2]
[426468673,1782425440000,-265.713336,0.0002401,14]
[426468668,1782425440000,-164.0,0.00024,2]
[426468674,1782425440000,-3399.47869135,0.000242,2]
[426468678,1782425440000,-452.88633865,0.00024448,2]
[426468677,1782425440000,-1133.86352755,0.000242,2]
[426468680,1782425440000,-203.86838014,0.000245,2]
[426468679,1782425440000,-3399.47869135,0.000245,2]
[426468681,1782425440000,-1325.52985229,0.000245,2]
[426468682,1782425440000,-1133.86352755,0.000245,2]
[426468699,1782425440000,-628.0500423,0.00024902,2]
[426468687,1782425440000,-3399.47869135,0.000247,2]
[426468684,1782425440000,-183.52,0.00024658,2]
[426468686,1782425440000,-755.47,0.00024658,2]
[426468683,1782425440000,-160.02799572,0.00024657,2]
[426468690,1782425440000,-1700.0,0.000249,9]
[426468688,1782425440000,-8555.43119268,0.0002478,2]
[426468691,1782425440000,-191.53036183,0.000249,4]
[426468696,1782425440000,-311.78894738,0.00024902,2]
[426468695,1782425440000,-315.71602381,0.00024902,2]
[426468689,1782425440000,-3399.47869135,0.000249,2]
[426468692,1782425440000,-365.92429839,0.00024901,2]
[426468698,1782425440000,-451.10215659,0.00024902,2]
[426468694,1782425440000,-512.27641534,0.00024902,2]
[426468697,1782425440000,-560.26711924,0.00024902,2]
[426468638,1782425440000,-172.87045873,0.00023644,2]
[426468671,1782425440000,-248.0,0.00024,2]
[426468670,1782425440000,-584.0,0.00024,2]
[426468693,1782425440000,-364.54935446,0.00024902,2]
[426468667,1782425440000,-353.0,0.00024,2]
[426468675,1782425440000,-203.86838014,0.000242,2]
[426468645,1782425440000,-200.18467315,0.00023644,2]
[426468648,1782425440000,-178.26332024,0.00023648,2]
[426468644,1782425440000,-217.1219251,0.00023644,2]
[426468646,1782425440000,-177.63908135,0.00023648,2]
[426468653,1782425440000,-1133.86352755,0.000237,2]
[426468643,1782425440000,-157.50040291,0.00023644,2]
[426468649,1782425440000,-208.12497018,0.00023648,2]
[426468651,1782425440000,-203.86838014,0.000237,2]
[426468642,1782425440000,-152.6866486,0.00023644,2]
[426468652,1782425440000,-1325.52985229,0.000237,2]
[426468647,1782425440000,-172.05357506,0.00023648,2]
[426468650,1782425440000,-3399.47869135,0.000237,2]
[426468641,1782425440000,-169.50781194,0.00023644,2]
[426468654,1782425440000,-220.205878,0.00023716,14]
[426468665,1782425440000,-284.0,0.00024,2]
[426468676,1782425440000,-1325.52985229,0.000242,2]
[426468666,1782425440000,-1171.0,0.00024,2]
[426468659,1782425440000,-1325.52985229,0.00024,2]
[426468655,1782425440000,-168.234652,0.00023716,14]
[426468662,1782425440000,-213.0,0.00024,2]
[426468660,1782425440000,-1133.86352755,0.00024,2]
[426468661,1782425440000,-325.0,0.00024,2]
[426468658,1782425440000,-799.0,0.00024,2]
[426468663,1782425440000,-558.0,0.00024,2]
[426468656,1782425440000,-3399.47869135,0.00024,2]
[426468657,1782425440000,-203.86838014,0.00024,2]
[426468664,1782425440000,-233.0,0.00024,2]
[426468740,1782425441000,-50000.0,0.00025,2]
[426468738,1782425441000,-1189.0,0.00025,2]
[426468749,1782425441000,-151.0,0.00025,2]
[426468739,1782425441000,-368.0,0.00025,2]
[426468732,1782425441000,-812.0,0.00025,2]
[426468734,1782425441000,-223.82291175,0.00025,2]
[426468729,1782425441000,-4959.2812,0.00024935,2]
[426468731,1782425441000,-666.0,0.00024999,2]
[426468728,1782425441000,-416.24994036,0.00024906,2]
[426468730,1782425441000,-244.33732715,0.00024999,10]
[426468735,1782425441000,-568.0,0.00025,2]
[426468744,1782425441000,-347.64,0.00025,2]
[426468747,1782425441000,-151.0,0.00025,2]
[426468743,1782425441000,-50000.0,0.00025,2]
[426468745,1782425441000,-289.94,0.00025,7]
[426468742,1782425441000,-50000.0,0.00025,2]
[426468741,1782425441000,-50000.0,0.00025,2]
[426468748,1782425441000,-151.0,0.00025,2]
[426468751,1782425441000,-151.0,0.00025,2]
[426468754,1782425441000,-540.0,0.00025,2]
[426468750,1782425441000,-151.0,0.00025,2]
[426468761,1782425441000,-6084.0,0.00025421,2]
[426468759,1782425441000,-1906.98967046,0.00025284,2]
[426468752,1782425441000,-151.0,0.00025,2]
[426468733,1782425441000,-326.0,0.00025,2]
[426468755,1782425441000,-597.0,0.00025,2]
[426468746,1782425441000,-151.0,0.00025,2]
[426468727,1782425441000,-356.52664049,0.00024906,2]
[426468716,1782425441000,-300.92156929,0.00024902,2]
[426468736,1782425441000,-247.0,0.00025,2]
[426468753,1782425441000,-151.0,0.00025,2]
[426468711,1782425441000,-324.09215923,0.00024902,2]
[426468701,1782425441000,-383.76162398,0.00024902,2]
[426468700,1782425441000,-243.87991588,0.00024902,2]
[426468702,1782425441000,-305.94598527,0.00024902,2]
[426468703,1782425441000,-330.07811311,0.00024902,2]
[426468704,1782425441000,-240.48004253,0.00024902,2]
[426468707,1782425441000,-381.43680573,0.00024902,2]
[426468705,1782425441000,-305.35171397,0.00024902,2]
[426468708,1782425441000,-314.0269083,0.00024902,2]
[426468709,1782425441000,-303.83635874,0.00024902,2]
[426468706,1782425441000,-300.00691436,0.00024902,2]
[426468737,1782425441000,-302.0,0.00025,2]
[426468712,1782425441000,-306.53868357,0.00024902,2]
[426468714,1782425441000,-314.92078874,0.00024902,2]
[426468715,1782425441000,-229.36482636,0.00024902,2]
[426468718,1782425441000,-345.74091746,0.00024902,2]
[426468721,1782425441000,-305.3732972,0.00024902,2]
[426468719,1782425441000,-347.87708943,0.00024902,2]
[426468720,1782425441000,-339.01562387,0.00024902,2]
[426468724,1782425441000,-400.3693463,0.00024902,2]
[426468713,1782425441000,-317.87438767,0.00024902,2]
[426468722,1782425441000,-315.00080582,0.00024902,2]
[426468723,1782425441000,-434.2438502,0.00024902,2]
[426468726,1782425441000,-344.10715012,0.00024906,2]
[426468725,1782425441000,-355.2781627,0.00024906,2]
[426468717,1782425441000,-403.03962661,0.00024902,2]
[426468760,1782425441000,-3399.47869135,0.000254,2]
[426468710,1782425441000,-337.71436989,0.00024902,2]
[426468756,1782425441000,-250.62790106,0.00025,2]
[426468789,1782425441000,-467.68342108,0.0002574,2]
[426468794,1782425441000,-676.65323488,0.0002574,2]
[426468796,1782425441000,-487.75983176,0.0002574,2]
[426468793,1782425441000,-197.26449725,0.0002574,2]
[426468800,1782425441000,-182.36092906,0.0002574,2]
[426468797,1782425441000,-575.64243596,0.0002574,2]
[426468799,1782425441000,-495.11716967,0.0002574,2]
[426468795,1782425441000,-942.07506344,0.0002574,2]
[426468798,1782425441000,-458.9189779,0.0002574,2]
[426468801,1782425441000,-209.99992073,0.0002574,2]
[426468814,1782425441000,-476.8115815,0.0002574,2]
[426468802,1782425441000,-480.96008505,0.0002574,2]
[426468792,1782425441000,-840.40067886,0.0002574,2]
[426468803,1782425441000,-204.31903166,0.0002574,2]
[426468812,1782425441000,-486.13823885,0.0002574,2]
[426468804,1782425441000,-458.02757096,0.0002574,2]
[426468816,1782425441000,-245.45203645,0.0002574,2]
[426468805,1782425441000,-450.01037154,0.0002574,2]
[426468807,1782425441000,-572.1552086,0.0002574,2]
[426468806,1782425441000,-219.42425046,0.0002574,2]
[426468808,1782425441000,-471.04036245,0.0002574,2]
[426468809,1782425441000,-455.75453811,0.0002574,2]
[426468810,1782425441000,-506.57155484,0.0002574,2]
[426468811,1782425441000,-228.92472085,0.0002574,2]
[426468817,1782425441000,-458.72965273,0.0002574,2]
[426468757,1782425441000,-742.82821955,0.00025,2]
[426468813,1782425441000,-459.80802536,0.0002574,2]
[426468790,1782425441000,-206.7260795,0.0002574,2]
[426468815,1782425441000,-472.3811831,0.0002574,2]
[426468788,1782425441000,-473.57403572,0.0002574,2]
[426468758,1782425441000,-3399.47869135,0.000252,2]
[426468762,1782425441000,-3649.0,0.00025421,2]
[426468764,1782425441000,-150.0,0.0002561,2]
[426468773,1782425441000,-151.0,0.0002574,2]
[426468763,1782425441000,-452.88633865,0.00025512,2]
[426468767,1782425441000,-383.0,0.0002561,2]
[426468771,1782425441000,-151.0,0.0002574,2]
[426468765,1782425441000,-1277.0,0.0002561,2]
[426468791,1782425441000,-200.68787274,0.0002574,2]
[426468766,1782425441000,-1361.0,0.0002561,2]
[426468768,1782425441000,-1230.0,0.0002561,2]
[426468774,1782425441000,-151.0,0.0002574,2]
[426468769,1782425441000,-3399.47869135,0.000257,2]
[426468770,1782425441000,-548.88644759,0.00025739,2]
[426468784,1782425441000,-185.25841479,0.0002574,2]
[426468782,1782425441000,-203.2992283,0.0002574,2]
[426468772,1782425441000,-151.0,0.0002574,2]
[426468777,1782425441000,-151.0,0.0002574,2]
[426468778,1782425441000,-203.07370782,0.0002574,2]
[426468780,1782425441000,-155.76491572,0.0002574,2]
[426468779,1782425441000,-546.82403169,0.0002574,2]
[426468781,1782425441000,-247.39069773,0.0002574,2]
[426468787,1782425441000,-239.39168449,0.0002574,2]
[426468776,1782425441000,-151.0,0.0002574,2]
[426468775,1782425441000,-151.0,0.0002574,2]
[426468785,1782425441000,-245.99710636,0.0002574,2]
[426468783,1782425441000,-215.08436668,0.0002574,2]